Workbook

Sheet legittima e disponibile
A1: CALCOLO QUOTA DI LEGITTIMA E QUOTA DISPONIBILE (digitare solo le celle bianche) | P1: Gestione colori: | Q1: sfondo: turchese: | S1: costanti: giallo | U1: variabili: nessun colore | X1: formule: verdi | Z1: dati da VB: ciano
A2: Se il de cuius ha fatto testamento ed ha lasciato: | E2: Importo del patrimonio ereditario: | K2: 1000000
A3: 1) | B3: solo il coniuge, senza figli | C3: quota di legittima spettante al coniuge | E3: quota disponibile
C4: 0.5 | D4: =$K$2*C4 -> 500000 | E4: =100%-C4 -> 0.5 | F4: =$K$2*E4 -> 500000
A5: 2) | B5: il coniuge ed un figlio | C5: quota di legittima spettante al coniuge | E5: quota di legittima spettante al figlio | G5: quota disponibile
C6: =1/3/100% -> 0.3333333333 | D6: =$K$2*C6 -> 333333.3333 | E6: =1/3/100% -> 0.3333333333 | F6: =$K$2*E6 -> 333333.3333 | G6: =100%-C6-E6 -> 0.3333333333 | H6: =$K$2*G6 -> 333333.3333
A7: 3) | B7: il coniuge e due o più figli | C7: quota di legittima spettante al coniuge | E7: quota di legittima spettante a tutti i figli | G7: quota disponibile | I7: n° figli | J7: quota di legittima spettante a ciascun figlio
C8: 0.25 | D8: =$K$2*C8 -> 250000 | E8: 0.5 | F8: =$K$2*E8 -> 500000 | G8: =100%-C8-E8 -> 0.25 | H8: =$K$2*G8 -> 250000 | I8: 3 | J8: =$F8/I8 -> 166666.6667
A9: 4) | B9: il coniuge e gli ascendenti (in mancanza di figli) | C9: quota di legittima spettante al coniuge | E9: quota di legittima spettante agli ascendenti | G9: quota disponibile | I9: n° ascemdenti | J9: quota di legittima spettante a ciascun ascendente
C10: 0.5 | D10: =$K$2*C10 -> 500000 | E10: 0.25 | F10: =$K$2*E10 -> 250000 | G10: =100%-C10-E10 -> 0.25 | H10: =$K$2*G10 -> 250000 | I10: 2 | J10: =$F10/I10 -> 125000
A11: 5) | B11: solo un figlio | C11: quota di legittima spettante al figlio | E11: quota disponibile
C12: 0.5 | D12: =$K$2*C12 -> 500000 | E12: =100%-C12 -> 0.5 | F12: =$K$2*E12 -> 500000
A13: 6) | B13: solo figli, due o più (in mancanza del coniuge) | C13: quota di legittima spettante a tutti i figli, da dividersi in parti uguali | E13: quota disponibile | G13: n° figli | H13: quota di legittima spettante a ciascun figlio
C14: =2/3/100% -> 0.6666666667 | D14: =$K$2*C14 -> 666666.6667 | E14: =100%-C14 -> 0.3333333333 | F14: =$K$2*E14 -> 333333.3333 | G14: 2 | H14: =$D14/G14 -> 333333.3333
A15: 7) | B15: solo ascendenti (in mancanza del coniuge e dei figli) | C15: quota di legittima spettante agli ascendenti, da dividersi in parti uguali | E15: quota disponibile | G15: n° ascemdenti | H15: quota di legittima spettante a ciascun ascendente
C16: =1/3/100% -> 0.3333333333 | D16: =$K$2*C16 -> 333333.3333 | E16: =100%-C16 -> 0.6666666667 | F16: =$K$2*E16 -> 666666.6667 | G16: 2 | H16: =$D16/G16 -> 166666.6667
A17: 8) | B17: né figli, né coniuge, né ascendenti | C17: quota disponibile
C18: 1 | D18: =$K$2*C18 -> 1000000
A19: CALCOLO QUOTA DI LEGITTIMA (digitare solo le celle bianche)
A20: Se il de cuius non ha fatto testamento ed ha lasciato: | E20: Importo del patrimonio ereditario: | K20: 1000000
A21: 1) | B21: solo il coniuge, senza figli | C21: quota di legittima spettante al coniuge
C22: 1 | D22: =$K$20*C22 -> 1000000
A23: 2) | B23: il coniuge ed un figlio | C23: quota di legittima spettante al coniuge | F23: quota di legittima spettante al figlio
C24: 0.5 | D24: =$K$20*C24 -> 500000 | F24: =100%-C24 -> 0.5 | G24: =$K$20*F24 -> 500000
A25: 3) | B25: il coniuge e due o più figli | C25: quota di legittima spettante al coniuge | F25: quota di legittima spettante ai figli, in parti uguali | I25: n° figli | J25: quota di legittima spettante a ciascun figlio
C26: =1/3/100% -> 0.3333333333 | D26: =$K$20*C26 -> 333333.3333 | F26: =100%-C26 -> 0.6666666667 | G26: =$K$20*F26 -> 666666.6667 | I26: 3 | J26: =$G26/I26 -> 222222.2222
A27: 4) | B27: il coniuge e fratelli e/o sorelle | C27: quota di legittima spettante al coniuge | F27: quota di legittima spettante ai fratelli e sorelle da dividersi in parti uguali | J27: n° fratelli e sorelle | K27: quota legittima spettante a ciascun figlio
C28: =2/3/100% -> 0.6666666667 | D28: =$K$20*C28 -> 666666.6667 | F28: =100%-C28 -> 0.3333333333 | H28: =$K$20*F28 -> 333333.3333 | J28: 2 | K28: =$H28/J28 -> 166666.6667
A29: 5) | B29: il coniuge, fratelli e/o sorelle ed ascendenti | C29: quota di legittima spettante al coniuge | E29: quota di legittima spettante ai fratelli e sorelle ed ascendenti | G29: agli ascendenti almeno il 25% del 33% del patrimonio ereditario | I29: n° fratelli e sorelle | J29: quota di legittima spettante a ciascun fratello e sorella | K29: n° ascendenti | L29: quota di legittima spettante a ciascun ascendente
C30: =2/3/100% -> 0.6666666667 | D30: =$K$20*C30 -> 666666.6667 | E30: =100%-C30 -> 0.3333333333 | F30: =$K$20*E30 -> 333333.3333 | G30: =25%*E30 -> 0.08333333333 | H30: =$K$20*G30 -> 83333.33333 | I30: 2 | J30: =($F30-$L30*$K30)/I30 -> 111111.1111 | K30: 1 | L30: =MAX(25%*$F30,$F30/SUM($I30,$K30))/K30 -> 111111.1111
A31: 6) | B31: solo un figlio | C31: quota di legittima spettante al figlio
C32: 1 | D32: =$K$20*C32 -> 1000000
A33: 7) | B33: due o più figli (in mancanza del coniuge) | C33: quota di legittima spettante ai figli, da dividersi in parti uguali | G33: n° figli | H33: quota di legittima spettante a ciascun figlio
C34: 1 | E34: =$K$20*C34 -> 1000000 | G34: 5 | H34: =$E34/G34 -> 200000
A35: 8) | B35: solo un genitore | C35: quota di legittima spettante al genitore
C36: 1 | D36: =$K$20*C36 -> 1000000
A37: 9) | B37: entrambi i genitori | C37: quota di legittima spettante ai genitori, da dividersi in parti uguali (50% ciascuno) | H37: n° genitori | I37: quota legittima spettante a ciascun genitore
C38: 1 | E38: =$K$20*C38 -> 1000000 | H38: 2 | I38: =$E38/H38 -> 500000
A39: 10) | B39: entrambi i genitori e fratelli e/o sorelle | C39: quota di legittima spettante ai genitori, da dividersi in parti uguali (50% ciascuno) | E39: quota di legittima spettante ai fratelli e/o sorelle, da dividersi in parti uguali | G39: n° genitori | H39: quota di legittima spettante a ciascun fratello e sorella | J39: n° fratelli e sorelle | K39: quota di legittima spettante a ciascun fratello o sorella
C40: 0.5 | D40: =$K$20*C40 -> 500000 | E40: =100%-C40 -> 0.5 | F40: =$K$20*E40 -> 500000 | G40: 2 | H40: =$D40/G40 -> 250000 | J40: 2 | K40: =$F40/J40 -> 250000
A41: 11) | B41: fratelli e/o sorelle | C41: quota di legittima spettante ai fratelli e/o sorelle, in parti uguali | G41: n° fratelli e sorelle | I41: quota di legittima spettante a ciascun fratello o sorella
C42: 1 | E42: =$K$20*C42 -> 1000000 | G42: 2 | I42: =$E42/G42 -> 500000
A43: 12) | B43: solo i nonni | C43: quota legittima spettante ai nonni paterni | E43: quota legittima spettante ai nonni materni | G43: n° nonni paterni | H43: quota di legittima spettante a ciascun nonno paterno | J43: n° nonni materni | K43: quota di legittima spettante a ciascun nonno materno
C44: 0.5 | D44: =$K$20*C44 -> 500000 | E44: =100%-B44-C44 -> 0.5 | F44: =$K$20*E44 -> 500000 | G44: 2 | H44: =$D44/G44 -> 250000 | J44: 2 | K44: =$F44/J44 -> 250000
A45: 13) | B45: bisnonni o altri ascendenti | C45: quota di legittima spettante all'ascendente più prossimo
C46: 1 | E46: =$K$20*C46 -> 1000000
A47: 14) | B47: altri parenti, diversi dal coniuge, figli, fratelli, sorelle ed ascendenti | C47: quota di legittima spettante al o ai parenti più prossimi entro il 6° grado, escludendo tutti gli altri | E47: n° parenti più prossimi entro il 6° grado, escludendo tutti gli altri | G47: quota di legittima spettante a ciascun parente più prossimo entro il 6° grado, escludendo tutti gli altri
C48: 1 | D48: =$K$20*C48 -> 1000000 | E48: 2 | G48: =$D48/E48 -> 500000
